[Event "26th Hit Open-A 2022"]
[Site "Nova Gorica"]
[Date "2022.09.19"]
[Round "6.45"]
[White "Guid, Taja"]
[Black "Zlatanovic, Srdjan"]
[Result "1/2-1/2"]
[ECO "B23"]
[WhiteElo "1511"]
[BlackElo "1740"]
[Annotator "NA COMBH"]
[PlyCount "92"]
[EventDate "2022.09.16"]
[EventType "swiss"]
[EventCountry "SLO"]
[SourceTitle "playchess.com"]
[Source "ChessBase"]
[SourceQuality "1"]
[TimeControl "5400+30"]

1. e4 {[%emt 0:00:02]} c5 {[%emt 0:00:07]} 2. Nc3 {[%emt 0:00:08]} a6 {[%emt 0:00:07]} 3. Nge2 {[%emt 0:00:11]} b5 {[%emt 0:00:02]} 4. g3 {[%emt 0:00:52]} Bb7 {[%emt 0:00:32]} 5. Bg2 {[%emt 0:00:09]} d6 {[%emt 0:00:18]} 6. d4 {[%emt 0:12:56]} cxd4 {[%emt 0:00:06]} 7. Nxd4 {[%emt 0:00:05]} Nd7 {[%emt 0:00:05]} 8. O-O {[%emt 0:00:39]} g6 {[%emt 0:00:03]} 9. Re1 {[%emt 0:01:43]} Bg7 {[%emt 0:00:08]} 10. Be3 {[%emt 0:12:37]} Ngf6 {[%emt 0:00:20]} 11. e5 {[%emt 0:10:13]} dxe5 {[%emt 0:04:21]} 12. Bxb7 {[%emt 0:00:14]} exd4 {[%emt 0:00:07]} 13. Bxa8 {[%emt 0:13:45]} dxe3 {[%emt 0:00:28]} 14. Bg2 {[%emt 0:00:59]} exf2+ {[%emt 0:00:02]} 15. Kxf2 {[%emt 0:00:09]} O-O {[%emt 0:00:31]} 16. Kg1 {[%emt 0:01:26]} b4 {[%emt 0:01:52]} 17. Na4 {[%emt 0:10:00]} Qa5 {[%emt 0:00:29]} 18. c4 {[%emt 0:04:59]} bxc3 {[%emt 0:01:00]} 19. Rxe7 {[%emt 0:09:59]} cxb2 {[%emt 0:00:39]} 20. Rb1 {[%emt 0:00:11]} Rd8 {[%emt 0:04:33]} 21. Qc2 {[%emt 0:03:08]} Nd5 {[%emt 0:05:37]} 22. Bxd5 {[%emt 0:02:15]} Qxd5 {[%emt 0:00:59]} 23. Qe4 {[%emt 0:02:13]} Qxa2 {[%emt 0:11:26]} 24. Qc2 {[%emt 0:05:27]} Bd4+ {[%emt 0:01:13]} 25. Kg2 {[%emt 0:02:20]} Ne5 {[%emt 0:02:38]} 26. Nxb2 {[%emt 0:01:39]} Qd5+ {[%emt 0:00:33]} 27. Kh3 {[%emt 0:00:32]} Nf3 {[%emt 0:03:15]} 28. g4 {[%emt 0:01:37]} Qg5 {[%emt 0:04:14]} 29. Qc7 {[%emt 0:00:38]} Qh4+ {[%emt 0:00:21]} 30. Kg2 {[%emt 0:00:06]} Qf2+ {[%emt 0:00:10]} 31. Kh1 {[%emt 0:00:20]} Bb6 {[%emt 0:18:17]} 32. Qf4 {[%emt 0:00:47]} Rf8 {[%emt 0:19:25]} 33. Nd3 {[%emt 0:01:05]} Qc2 {[%emt 0:00:38]} 34. Rxb6 {[%emt 0:02:10]} Qxd3 {[%emt 0:00:18]} 35. Kg2 {[%emt 0:00:05]} Nh4+ {[%emt 0:01:29]} 36. Kf2 {[%emt 0:00:09]} Qc2+ {[%emt 0:01:04]} 37. Kg3 {[%emt 0:00:59]} Qc5 {[%emt 0:00:44]} 38. Qe3 {[%emt 0:00:59]} Qc2 {[%emt 0:01:24]} 39. Qe2 {[%emt 0:01:36]} Qc5 {[%emt 0:00:32]} 40. Qe3 {[%emt 0:00:03]} Qc2 {[%emt 0:00:04]} 41. Qe2 {[%emt 0:00:30]} Qc5 {[%emt 0:00:03]} 42. Qe3 {[%emt 0:00:57]} Qc2 {[%emt 0:00:03]} 43. Kxh4 {[%emt 0:00:10]} Qxh2+ {[%emt 0:00:02]} 44. Kg5 {[%emt 0:00:01]} h6+ {[%emt 0:00:13]} 45. Kf6 {[%emt 0:00:04]} Qh4+ {[%emt 0:00:07]} 46. g5 {[%emt 0:00:06]} hxg5 {[%emt 0:00:07]} 1/2-1/2

[Event "26th Hit Open-A 2022"]
[Site "Nova Gorica"]
[Date "2022.09.19"]
[Round "6.46"]
[White "Bajec, Borut"]
[Black "Cokan, Mirko"]
[Result "1/2-1/2"]
[ECO "C01"]
[WhiteElo "1732"]
[BlackElo "1683"]
[Annotator "NA COMBH"]
[PlyCount "53"]
[EventDate "2022.09.16"]
[EventType "swiss"]
[EventCountry "SLO"]
[SourceTitle "playchess.com"]
[Source "ChessBase"]
[SourceQuality "1"]
[TimeControl "5400+30"]

1. d4 {[%emt 0:00:15]} Nf6 {[%emt 0:00:10]} 2. c4 {[%emt 0:00:11]} e5 {[%emt 0:00:32]} 3. e3 {[%emt 0:00:19]} exd4 {[%emt 0:02:08]} 4. exd4 {[%emt 0:00:17]} d5 {[%emt 0:00:13]} 5. Nf3 {[%emt 0:00:22]} Bb4+ {[%emt 0:00:41]} 6. Bd2 {[%emt 0:00:10]} Qe7+ {[%emt 0:01:33]} 7. Be2 {[%emt 0:00:11]} Bxd2+ {[%emt 0:01:02]} 8. Qxd2 {[%emt 0:00:12]} dxc4 {[%emt 0:01:42]} 9. O-O {[%emt 0:00:16]} Bg4 {[%emt 0:00:46]} 10. Nc3 {[%emt 0:00:24]} O-O {[%emt 0:01:25]} 11. Rae1 {[%emt 0:08:58]} Qd8 {[%emt 0:01:45]} 12. h3 {[%emt 0:00:21]} Bxf3 {[%emt 0:00:57]} 13. Bxf3 {[%emt 0:00:10]} c6 {[%emt 0:00:08]} 14. Ne4 {[%emt 0:02:19]} Nxe4 {[%emt 0:03:58]} 15. Rxe4 {[%emt 0:00:23]} Nd7 {[%emt 0:00:34]} 16. Rfe1 {[%emt 0:00:20]} Nf6 {[%emt 0:00:43]} 17. Re7 {[%emt 0:00:55]} Rb8 {[%emt 0:10:01]} 18. a3 {[%emt 0:00:44]} Nd5 {[%emt 0:00:56]} 19. R7e5 {[%emt 0:00:56]} Qd7 {[%emt 0:07:13]} 20. Bxd5 {[%emt 0:07:33]} cxd5 {[%emt 0:01:09]} 21. Re7 {[%emt 0:00:07]} Qc6 {[%emt 0:01:24]} 22. Qe3 {[%emt 0:03:36]} a5 {[%emt 0:05:01]} 23. Qe5 {[%emt 0:00:48]} b5 {[%emt 0:02:25]} 24. Rc7 {[%emt 0:01:08]} Qa8 {[%emt 0:01:20]} 25. Re7 {[%emt 0:00:59]} b4 {[%emt 0:01:42]} 26. axb4 {[%emt 0:00:15]} axb4 {[%emt 0:00:03]} 27. Kh2 {[%emt 0:00:30]} 1/2-1/2

[Event "26th Hit Open-A 2022"]
[Site "Nova Gorica"]
[Date "2022.09.19"]
[Round "6.47"]
[White "Novak, Simona"]
[Black "Savoia, Serge"]
[Result "0-1"]
[ECO "C41"]
[WhiteElo "1692"]
[BlackElo "1636"]
[Annotator "NA COMBH"]
[PlyCount "154"]
[EventDate "2022.09.16"]
[EventType "swiss"]
[EventCountry "SLO"]
[SourceTitle "playchess.com"]
[Source "ChessBase"]
[SourceQuality "1"]
[TimeControl "5400+30"]

1. e4 {[%emt 0:00:31]} d6 {[%emt 0:00:11]} 2. d4 {[%emt 0:00:00]} e5 {[%emt 0:00:08]} 3. Nf3 {[%emt 0:00:27]} Bg4 {[%emt 0:00:18]} 4. dxe5 {[%emt 0:11:14]} Bxf3 {[%emt 0:00:17]} 5. Qxf3 {[%emt 0:00:04]} dxe5 {[%emt 0:00:56]} 6. Bc4 {[%emt 0:04:21]} Qf6 {[%emt 0:00:11]} 7. Qg3 {[%emt 0:01:51]} h6 {[%emt 0:00:48]} 8. Nc3 {[%emt 0:00:25]} c6 {[%emt 0:00:23]} 9. Bd2 {[%emt 0:03:13]} Nd7 {[%emt 0:00:21]} 10. O-O-O {[%emt 0:00:38]} b5 {[%emt 0:00:51]} 11. Be2 {[%emt 0:09:22]} a5 {[%emt 0:00:28]} 12. f4 {[%emt 0:02:32]} exf4 {[%emt 0:02:33]} 13. Bxf4 {[%emt 0:00:26]} Bb4 {[%emt 0:04:20]} 14. e5 {[%emt 0:03:21]} Qg6 {[%emt 0:01:39]} 15. Qxg6 {[%emt 0:04:55]} fxg6 {[%emt 0:00:19]} 16. Nxb5 {[%emt 0:00:16]} cxb5 {[%emt 0:00:51]} 17. Bxb5 {[%emt 0:00:01]} O-O-O {[%emt 0:00:25]} 18. Ba6+ {[%emt 0:02:35]} Kc7 {[%emt 0:01:16]} 19. e6+ {[%emt 0:00:05]} Kb6 {[%emt 0:00:31]} 20. Rxd7 {[%emt 0:00:44]} Rxd7 {[%emt 0:00:29]} 21. exd7 {[%emt 0:00:02]} Ne7 {[%emt 0:01:14]} 22. Bc4 {[%emt 0:01:17]} g5 {[%emt 0:01:33]} 23. Be5 {[%emt 0:01:15]} Rd8 {[%emt 0:02:16]} 24. Rd1 {[%emt 0:00:39]} Nf5 {[%emt 0:00:35]} 25. Be6 {[%emt 0:02:06]} Ne3 {[%emt 0:01:27]} 26. Bd4+ {[%emt 0:00:15]} Bc5 {[%emt 0:00:10]} 27. Bxc5+ {[%emt 0:01:00]} Kxc5 {[%emt 0:00:10]} 28. Rd3 {[%emt 0:00:06]} Nxg2 {[%emt 0:01:01]} 29. Rc3+ {[%emt 0:01:28]} Kd6 {[%emt 0:00:10]} 30. Rc8 {[%emt 0:00:43]} Ke7 {[%emt 0:00:42]} 31. Bh3 {[%emt 0:02:41]} Nf4 {[%emt 0:00:12]} 32. Bf1 {[%emt 0:05:30]} Rxd7 {[%emt 0:01:33]} 33. c4 {[%emt 0:01:19]} Nd3+ {[%emt 0:03:05]} 34. Bxd3 {[%emt 0:03:06]} Rxd3 {[%emt 0:00:07]} 35. Rc5 {[%emt 0:03:02]} a4 {[%emt 0:01:13]} 36. Rc7+ {[%emt 0:01:15]} Kf6 {[%emt 0:01:50]} 37. Ra7 {[%emt 0:01:15]} Rh3 {[%emt 0:00:45]} 38. Rxa4 {[%emt 0:00:07]} Rxh2 {[%emt 0:00:15]} 39. c5 {[%emt 0:00:54]} Ke5 {[%emt 0:01:36]} 40. c6 {[%emt 0:01:45]} Kd6 {[%emt 0:00:26]} 41. Rc4 {[%emt 0:00:16]} Kc7 {[%emt 0:00:32]} 42. a4 {[%emt 0:00:03]} Rh4 {[%emt 0:01:30]} 43. Rc3 {[%emt 0:07:00]} Rxa4 {[%emt 0:00:23]} 44. Rf3 {[%emt 0:07:47]} Rf4 {[%emt 0:03:33]} 45. Ra3 {[%emt 0:01:41]} g6 {[%emt 0:01:21]} 46. Ra7+ {[%emt 0:01:00]} Kb6 {[%emt 0:00:53]} 47. Rh7 {[%emt 0:01:31]} h5 {[%emt 0:01:02]} 48. Re7 {[%emt 0:04:08]} Rc4+ {[%emt 0:00:24]} 49. Kd2 {[%emt 0:00:46]} Rxc6 {[%emt 0:00:22]} 50. Re5 {[%emt 0:00:04]} g4 {[%emt 0:00:26]} 51. Rg5 {[%emt 0:00:06]} Rf6 {[%emt 0:00:46]} 52. Ke2 {[%emt 0:01:33]} Kc7 {[%emt 0:00:27]} 53. b4 {[%emt 0:00:43]} Kd7 {[%emt 0:00:32]} 54. b5 {[%emt 0:01:30]} Ke7 {[%emt 0:00:25]} 55. Rc5 {[%emt 0:02:15]} Rb6 {[%emt 0:01:12]} 56. Rc7+ {[%emt 0:00:29]} Kd6 {[%emt 0:00:26]} 57. Ra7 {[%emt 0:01:06]} Kc5 {[%emt 0:00:43]} 58. Rc7+ {[%emt 0:02:06]} Kxb5 {[%emt 0:00:16]} 59. Kf2 {[%emt 0:00:15]} h4 {[%emt 0:00:39]} 60. Rh7 {[%emt 0:00:22]} Rf6+ {[%emt 0:00:45]} 61. Kg2 {[%emt 0:00:10]} g5 {[%emt 0:00:29]} 62. Rb7+ {[%emt 0:02:42]} Kc5 {[%emt 0:00:17]} 63. Ra7 {[%emt 0:00:03]} Kb6 {[%emt 0:00:44]} 64. Rg7 {[%emt 0:00:54]} Rf5 {[%emt 0:00:31]} 65. Rg6+ {[%emt 0:00:29]} Kb5 {[%emt 0:00:20]} 66. Rg8 {[%emt 0:00:08]} g3 {[%emt 0:00:33]} 67. Rg7 {[%emt 0:01:46]} Kc4 {[%emt 0:00:26]} 68. Ra7 {[%emt 0:00:15]} Rf2+ {[%emt 0:00:28]} 69. Kh3 {[%emt 0:01:10]} Rh2+ {[%emt 0:00:45]} 70. Kg4 {[%emt 0:00:09]} g2 {[%emt 0:00:23]} 71. Ra1 {[%emt 0:03:37]} Rh1 {[%emt 0:00:24]} 72. Ra4+ {[%emt 0:00:44]} Kb5 {[%emt 0:00:17]} 73. Ra1 {[%emt 0:01:01]} Rxa1 {[%emt 0:00:22]} 74. Kh3 {[%emt 0:00:05]} Ra2 {[%emt 0:00:47]} 75. Kh2 {[%emt 0:00:04]} h3 {[%emt 0:00:32]} 76. Kg1 {[%emt 0:00:05]} g4 {[%emt 0:00:47]} 77. Kh2 {[%emt 0:00:02]} Ra1 {[%emt 0:00:33]} 0-1

[Event "26th Hit Open-A 2022"]
[Site "Nova Gorica"]
[Date "2022.09.19"]
[Round "6.48"]
[White "Papler, Peter"]
[Black "Mihelj, Edvard"]
[Result "0-1"]
[ECO "A40"]
[WhiteElo "1750"]
[BlackElo "1657"]
[Annotator "NA COMBH"]
[PlyCount "110"]
[EventDate "2022.09.16"]
[EventType "swiss"]
[EventCountry "SLO"]
[SourceTitle "playchess.com"]
[Source "ChessBase"]
[SourceQuality "1"]
[TimeControl "5400+30"]

1. d4 {[%emt 0:00:07]} b6 {[%emt 0:00:29]} 2. Bf4 {[%emt 0:00:13]} Bb7 {[%emt 0:00:29]} 3. Nc3 {[%emt 0:00:18]} g6 {[%emt 0:00:38]} 4. e4 {[%emt 0:00:22]} Bg7 {[%emt 0:00:16]} 5. Qd2 {[%emt 0:01:12]} d6 {[%emt 0:00:58]} 6. Nf3 {[%emt 0:00:23]} Nd7 {[%emt 0:00:20]} 7. O-O-O {[%emt 0:01:48]} e6 {[%emt 0:03:54]} 8. Be2 {[%emt 0:04:07]} Qe7 {[%emt 0:02:58]} 9. Rhe1 {[%emt 0:00:57]} h5 {[%emt 0:00:40]} 10. Nb5 {[%emt 0:03:24]} Ndf6 {[%emt 0:02:58]} 11. e5 {[%emt 0:02:26]} Ne4 {[%emt 0:01:14]} 12. Qe3 {[%emt 0:00:25]} d5 {[%emt 0:01:29]} 13. h4 {[%emt 0:03:10]} a6 {[%emt 0:01:58]} 14. Nc3 {[%emt 0:00:29]} Nh6 {[%emt 0:01:38]} 15. Nxe4 {[%emt 0:02:17]} dxe4 {[%emt 0:01:22]} 16. Ng5 {[%emt 0:01:56]} Nf5 {[%emt 0:00:46]} 17. Qb3 {[%emt 0:02:55]} Nxh4 {[%emt 0:02:56]} 18. Bf1 {[%emt 0:01:13]} Bh6 {[%emt 0:00:52]} 19. Nh3 {[%emt 0:01:52]} Bxf4+ {[%emt 0:01:37]} 20. Nxf4 {[%emt 0:00:06]} O-O {[%emt 0:05:01]} 21. Kb1 {[%emt 0:05:00]} Rad8 {[%emt 0:04:22]} 22. Qh3 {[%emt 0:00:57]} Qg5 {[%emt 0:03:13]} 23. Ne2 {[%emt 0:03:55]} Nf5 {[%emt 0:01:22]} 24. Qc3 {[%emt 0:01:45]} Rd7 {[%emt 0:05:08]} 25. Nc1 {[%emt 0:01:11]} Rfd8 {[%emt 0:01:11]} 26. Nb3 {[%emt 0:00:17]} c5 {[%emt 0:03:03]} 27. g3 {[%emt 0:03:20]} Nxd4 {[%emt 0:01:57]} 28. Nxd4 {[%emt 0:01:00]} cxd4 {[%emt 0:01:57]} 29. Qb4 {[%emt 0:00:42]} Qxe5 {[%emt 0:00:59]} 30. Qxb6 {[%emt 0:01:01]} Qc7 {[%emt 0:03:08]} 31. Qb3 {[%emt 0:01:26]} Qa5 {[%emt 0:01:12]} 32. Bc4 {[%emt 0:04:07]} Bd5 {[%emt 0:02:02]} 33. Bxd5 {[%emt 0:00:10]} exd5 {[%emt 0:00:13]} 34. Rg1 {[%emt 0:00:21]} Qb5 {[%emt 0:01:13]} 35. Rxd4 {[%emt 0:00:59]} Qxb3 {[%emt 0:00:40]} 36. axb3 {[%emt 0:00:08]} f5 {[%emt 0:00:32]} 37. Rgd1 {[%emt 0:00:14]} Kf7 {[%emt 0:00:30]} 38. c4 {[%emt 0:00:18]} Ke6 {[%emt 0:00:17]} 39. c5 {[%emt 0:00:35]} Rc7 {[%emt 0:01:14]} 40. b4 {[%emt 0:00:36]} g5 {[%emt 0:01:29]} 41. Kc2 {[%emt 0:00:44]} Ke5 {[%emt 0:00:43]} 42. Kc3 {[%emt 0:00:32]} f4 {[%emt 0:02:16]} 43. Ra1 {[%emt 0:00:21]} fxg3 {[%emt 0:03:36]} 44. fxg3 {[%emt 0:00:10]} Rc6 {[%emt 0:00:43]} 45. Re1 {[%emt 0:04:14]} Rf8 {[%emt 0:01:46]} 46. Red1 {[%emt 0:01:24]} Rd8 {[%emt 0:00:22]} 47. Rh1 {[%emt 0:01:54]} a5 {[%emt 0:00:38]} 48. Rxh5 {[%emt 0:01:14]} axb4+ {[%emt 0:00:02]} 49. Rxb4 {[%emt 0:00:17]} Rxc5+ {[%emt 0:00:26]} 50. Kd2 {[%emt 0:01:13]} Rg8 {[%emt 0:00:38]} 51. Ke3 {[%emt 0:00:47]} Rc2 {[%emt 0:02:33]} 52. Rb5 {[%emt 0:04:25]} Rg2 {[%emt 0:00:30]} 53. Rh3 {[%emt 0:00:45]} Rf8 {[%emt 0:01:49]} 54. g4 {[%emt 0:00:54]} Rff2 {[%emt 0:00:40]} 55. b4 {[%emt 0:00:42]} Re2# {[%emt 0:00:20]} 0-1

[Event "26th Hit Open-A 2022"]
[Site "Nova Gorica"]
[Date "2022.09.20"]
[Round "7.1"]
[White "Stefansson, Vignir Vatnar"]
[Black "Willow, Jonah B"]
[Result "1/2-1/2"]
[ECO "D27"]
[WhiteElo "2452"]
[BlackElo "2385"]
[Annotator "TA"]
[PlyCount "90"]
[EventDate "2022.09.16"]
[EventType "swiss"]
[EventCountry "SLO"]
[SourceTitle "playchess.com"]
[Source "ChessBase"]
[SourceQuality "1"]
[TimeControl "5400+30"]

{[%evp 23,90,12,38,30,48,47,38,41,53,58,47,43,44,46,55,51,61,50,97,68,78,59,93,0,0,0,0,0,0,0,0,0,30,13,30,0,0,0,0,0,0,0,71,23,37,23,128,34,239,230,244,229,361,57,291,351,252,259,309,319,445,435,332,0,0,0,0,0,0]} 1. Nf3 {[%emt 0:01:47]} d5 {[%emt 0:00:06]} 2. d4 {[%emt 0:01:14]} Nf6 {[%emt 0:00:05]} 3. c4 {[%emt 0:00:05]} e6 {[%emt 0:00:11]} 4. e3 {[%emt 0:02:14]} dxc4 {[%emt 0:00:44]} 5. Bxc4 {[%emt 0:00:13]} a6 {[%emt 0:00:19]} 6. O-O {[%emt 0:00:11]} c5 {[%emt 0:01:05]} 7. a4 {[%emt 0:01:57]} Nc6 {[%emt 0:03:18]} 8. Qe2 {[%emt 0:00:12]} cxd4 {[%emt 0:00:22]} 9. Rd1 {[%emt 0:00:06]} Be7 {[%emt 0:00:05]} 10. exd4 {[%emt 0:00:06]} O-O {[%emt 0:00:47]} 11. Nc3 {[%emt 0:00:04]} Nb4 {[%emt 0:03:23]} 12. Bg5 {[%emt 0:00:28]} Bd7 {[%emt 0:03:45] CPLX 2.5 26 (h7-h6) (=26)} 13. d5 {[%emt 0:01:17] CPLX 2.6. D27: Queen's Gambit Accepted: Classical main line: 7 e4!? and 7 a4.} exd5 {[%emt 0:03:07] CPLX 2.7} 14. Nxd5 {[%emt 0:00:34] RECAPT} Nbxd5 {[%emt 0:02:12] RECAPT} ({Not} 14... Nfxd5 15. Bxe7 Nxe7 16. Ne5 $16) 15. Bxd5 {[%emt 0:00:07] RECAPT. White is slightly better.} Nxd5 {[%emt 0:04:06] RECAPT 12 (h7-h6) (=10)} 16. Rxd5 {[%emt 0:01:34] RECAPT} Bxg5 {[%emt 0:01:54] CPLX 2.8} 17. Nxg5 {[%emt 0:00:05] RECAPT} h6 $1 {[%emt 0:00:43] CPLX 3.0} 18. Qd2 {[%emt 0:06:43] Hoping for Nf3. CPLX 3.3} hxg5 {[%emt 0:01:45] CPLX 3.0 9 (Qd8-f6) (=7)} 19. Rxd7 {[%emt 0:00:07] CPLX 2.7} Qb6 {[%emt 0:00:49] CPLX 2.3 10 (Qd8-f6) (=7)} 20. a5 {[%emt 0:06:43] White is more active. CPLX 2.4} Qb3 {[%emt 0:12:06] [#] CPLX 2.6 47 (Qb6-f6) (=12)} (20... Qf6 $14) 21. Rd3 $146 {[%emt 0:03:03] CPLX 2.3 29 (Ra1-a3) (=3)} ({Predecessor:} 21. Ra3 Qe6 22. Re3 Qc6 23. h3 Rac8 24. Rc3 Qe4 25. Rg3 Rc5 26. b4 Rb5 27. Rd4 Qe7 28. Re3 Qf6 29. Rf3 Qe7 30. Re3 Qf6 31. Rde4 b6 32. axb6 {½-½ (32) Heberla,B (2550)-Zaitsev,M (2467) Germany 2019}) 21... Qc4 {[%emt 0:11:10] CPLX 2.5 10 (Qb3-b5) (=11)} 22. Rd4 {[%emt 0:00:21] BESTDEEP} Qb3 {[%emt 0:01:03] CPLX 2.6 34 (Qc4-c5) (=13)} 23. Rb4 {[%emt 0:02:36] CPLX 2.2 93 (Ra1-a3) (=11)} (23. Ra3 $16 Qb5 24. Rd5) 23... Rad8 $11 {[%emt 0:00:35] EASY} 24. Rxb3 {[%emt 0:07:19] CPLX 3.0 0 (Qd2xd8) (=10)} Rxd2 {[%emt 0:00:05] EASY} 25. Rxb7 {[%emt 0:00:03][%mdl 4096] Endgame KRR-KRR. CPLX 2.0} Rc8 {[%emt 0:00:50] Inhibits Rc1. CPLX 2.0} 26. b4 {[%emt 0:00:40] CPLX 2.0 0 (Ra1-f1) (=9)} Rcc2 {[%emt 0:00:14] CPLX 2.0} 27. Rf1 {[%emt 0:00:05] BESTDEEP} Rb2 {[%emt 0:00:50] CPLX 2.0 30 (Rc2-a2) (=11)} 28. h3 {[%emt 0:00:28][%cal Ob4b5] BESTDEEP} g6 {[%emt 0:06:57] CPLX 2.0 17 (Rb2-a2) (=11)} 29. Rb6 {[%emt 0:01:15] CPLX 2.0 30 (b4-b5) (=9)} (29. b5 $5 {[%cal Rb5a6]} Ra2 30. bxa6 Rxa5 31. a7 $14) 29... Kg7 {[%emt 0:00:27] CPLX 2.0} 30. g3 {[%emt 0:02:28] CPLX 2.0 0 (Kg1-h1) (=8)} Rd4 {[%emt 0:00:54] CPLX 2.0} 31. Rxa6 {[%emt 0:01:26] aiming for Rb6. CPLX 2.0 0 (b4-b5) (=8)} Rdxb4 {[%emt 0:01:44] CPLX 2.2} 32. Ra1 {[%emt 0:01:18] Strongly threatening Ra8. CPLX 2.0 0 (Rf1-c1) (=8)} Rd4 {[%emt 0:02:40] RELBLUND 71 (Rb4-b5) (=13)} (32... Rb5 $11 {keeps the balance.}) 33. Ra3 {[%emt 0:05:16] CPLX 2.0 48 (Ra6-b6) (=10)} (33. Rb6 $16 Rxb6 34. axb6) 33... Rdd2 {[%emt 0:19:31] CPLX 2.0 14 (Rd4-d1) (=13)} 34. Rf3 {[%emt 0:00:10] Ra7 is the strong threat. CPLX 2.0 14 (Ra6-b6) (=10)} f5 {[%emt 0:00:04] [#] RELBLUND 105 (Rd2-d7) (=17)} (34... Rd7 $11) 35. Kg2 {[%emt 0:07:11] RELBLUND 94 (g3-g4) (=13)} (35. g4 $1 $16 {[%cal Rg4f5]}) 35... Rb4 $2 {[%emt 0:02:40] MISS-Rb2-a2 205 (Rb2-a2) (=25)} (35... Ra2 $14) 36. Rc3 $18 {[%emt 0:01:35] CPLX 2.0} g4 {[%emt 0:04:18] CPLX 2.1 14 (Rb4-b7) (=24)} 37. hxg4 {[%emt 0:04:58] CPLX 2.4} Rxg4 {[%emt 0:00:15] CPLX 2.3 132 (Rb4-b2) (=28)} (37... Rbb2 $142) 38. Rb6 $2 {[%emt 0:03:17] RELBLUND 304 (Rc3-c7) (=24)} ({White has to play} 38. Rc7+ $18 Kh6 39. Rf7) 38... Ra2 $2 {[%emt 0:00:29] [#] RELBLUND 234 (Rg4-a4) (=36)} (38... Ra4 $14) 39. a6 $1 {[%emt 0:00:20] DEEPSTRONG=>BLUNDERREACT} Kh6 {[%emt 0:00:14] BESTDEEP} 40. Rc8 {[%emt 0:03:17] BESTDEEP} Rd4 {[%emt 0:02:57] CPLX 2.4 50 (Ra2-a3) (=35)} 41. Rcc6 {[%emt 0:13:54] CPLX 2.3 0 (Rc8-g8) (=21)} Rdd2 {[%emt 0:00:34] CPLX 2.3 126 (Rd4-g4) (=38)} 42. Rxg6+ {[%emt 0:00:08] CPLX 2.4 10 (Kg2-h3) (=21)} Kh7 {[%emt 0:00:01] DEEPSTRONG} 43. Rge6 $2 {[%emt 0:02:03] CPLX 2.5 332 (Kg2-h3) (=31)} ({White should try} 43. Kh3 $18) 43... Rxf2+ $11 {[%emt 0:00:05] EASY. The position is equal.} 44. Kg1 {[%emt 0:00:02] Threatening mate with Re7+. EASY} Rg2+ $1 {[%emt 0:00:12] EASY} 45. Kf1 {[%emt 0:00:11] White wants to mate with Rb7+. EASY} Rxg3 {[%emt 0:00:09] Weighted Error Value: White=0.39/Black=0.46} 1/2-1/2

[Event "26th Hit Open-A 2022"]
[Site "Nova Gorica"]
[Date "2022.09.20"]
[Round "7.2"]
[White "Drazic, Sinisa"]
[Black "Kaasen, Tor Fredrik"]
[Result "1-0"]
[ECO "A00"]
[WhiteElo "2327"]
[BlackElo "2442"]
[Annotator "ChessBase"]
[PlyCount "85"]
[EventDate "2022.09.16"]
[EventType "swiss"]
[EventCountry "SLO"]
[SourceTitle "playchess.com"]
[Source "ChessBase"]
[SourceQuality "1"]
[TimeControl "5400+30"]

1. Nf3 {[%emt 0:00:30]} d5 {[%emt 0:02:02]} 2. g3 {[%emt 0:00:28]} Nd7 {[%emt 0:01:58]} 3. Bg2 {[%emt 0:00:30]} e5 {[%emt 0:00:23]} 4. d3 {[%emt 0:00:13]} Ngf6 {[%emt 0:00:32]} 5. O-O {[%emt 0:00:11]} c6 {[%emt 0:00:33]} 6. e4 {[%emt 0:06:33]} Bd6 {[%emt 0:02:39]} 7. Nc3 {[%emt 0:00:04]} O-O {[%emt 0:01:17]} 8. Bg5 {[%emt 0:08:22]} h6 {[%emt 0:01:48]} 9. Bd2 {[%emt 0:03:14]} Re8 {[%emt 0:01:19]} 10. Nh4 {[%emt 0:01:46]} dxe4 {[%emt 0:02:52]} 11. Nf5 {[%emt 0:06:16]} Bf8 {[%emt 0:02:33]} 12. Nxe4 {[%emt 0:00:30]} Nc5 {[%emt 0:05:22]} 13. Nxc5 {[%emt 0:01:11]} Bxc5 {[%emt 0:01:09]} 14. Be3 {[%emt 0:00:09]} Bf8 {[%emt 0:02:14]} 15. Qf3 {[%emt 0:04:54]} Be6 {[%emt 0:01:45]} 16. h3 {[%emt 0:05:06]} Bd5 {[%emt 0:06:31]} 17. Qe2 {[%emt 0:05:12]} Qd7 {[%emt 0:01:23]} 18. g4 {[%emt 0:01:15]} Kh7 {[%emt 0:04:16]} 19. c4 {[%emt 0:02:43]} Bxg2 {[%emt 0:02:41]} 20. Kxg2 {[%emt 0:00:11]} c5 {[%emt 0:00:26]} 21. Rad1 {[%emt 0:08:25]} Qc6+ {[%emt 0:00:44]} 22. f3 {[%emt 0:00:59]} g6 {[%emt 0:06:20]} 23. Ng3 {[%emt 0:02:31]} Bg7 {[%emt 0:00:28]} 24. b3 {[%emt 0:07:54]} b6 {[%emt 0:00:44]} 25. Rh1 {[%emt 0:00:26]} Rf8 {[%emt 0:02:20]} 26. g5 {[%emt 0:08:08]} hxg5 {[%emt 0:02:36]} 27. Bxg5 {[%emt 0:00:30]} Nh5 {[%emt 0:07:17]} 28. Qe4 {[%emt 0:02:22]} Qe8 {[%emt 0:12:22]} 29. Nxh5 {[%emt 0:02:07]} f5 {[%emt 0:00:07]} 30. Nxg7 {[%emt 0:00:09]} Kxg7 {[%emt 0:04:44]} 31. Qd5 {[%emt 0:03:33]} f4 {[%emt 0:00:22]} 32. h4 {[%emt 0:00:10]} Rf5 {[%emt 0:00:49]} 33. a4 {[%emt 0:01:28]} Rc8 {[%emt 0:00:28]} 34. Qb7+ {[%emt 0:00:41]} Rf7 {[%emt 0:00:20]} 35. Qe4 {[%emt 0:00:02]} Qe6 {[%emt 0:00:36]} 36. Kf2 {[%emt 0:00:18]} Rcf8 {[%emt 0:01:31]} 37. d4 {[%emt 0:00:19]} Rf5 {[%emt 0:00:56]} 38. dxc5 {[%emt 0:02:42]} bxc5 {[%emt 0:00:18]} 39. a5 {[%emt 0:00:06]} Rb8 {[%emt 0:00:47]} 40. Rd3 {[%emt 0:00:19]} Rf7 {[%emt 0:00:22]} 41. Kg2 {[%emt 0:00:27]} Rfb7 {[%emt 0:00:28]} 42. Re1 {[%emt 0:00:36]} Re8 {[%emt 0:01:28]} 43. Qxb7+ {[%emt 0:00:06]} 1-0